fUST/lending_fUST_20251104
["ID","MTS","AMOUNT","RATE_DAILY","PERIOD"]
[392982917,1762195842187,-162.077535,0.00021358,7]
[392982919,1762195842196,-199.332467,0.00021358,7]
[392982921,1762195842205,-156.93308,0.00021358,7]
[392982923,1762195842214,-151.0,0.00021358,7]
[392982925,1762195842223,-151.0,0.00021358,7]
[392982927,1762195842233,-162.077535,0.00021358,7]
[392982929,1762195842243,-162.077535,0.00021358,7]
[392982931,1762195842253,-151.0,0.00021358,7]
[392982933,1762195842262,-153.162323,0.00021358,7]
[392982935,1762195842271,-151.0,0.00021358,7]
[392982937,1762195842281,-151.0,0.00021358,7]
[392982939,1762195842290,-162.077535,0.00021358,7]
[392982940,1762195842299,-162.077535,0.00021358,7]
[392982942,1762195842308,-151.0,0.00021358,7]
[392982945,1762195842318,-162.75768,0.00021358,7]
[392982947,1762195842327,-151.0,0.00021358,7]
[392982949,1762195842337,-154.156611,0.00021358,7]
[392982951,1762195842346,-151.0,0.00021358,7]
[392982953,1762195842355,-151.0,0.00021358,7]
[392982955,1762195842365,-151.0,0.00021358,7]
[392982957,1762195842374,-151.0,0.00021358,7]
[392982959,1762195842383,-151.0,0.00021358,7]
[392982961,1762195842393,-151.0,0.00021358,7]
[392982963,1762195842401,-151.0,0.00021358,7]
[392982965,1762195842411,-151.0,0.00021358,7]
[392982967,1762195842420,-151.0,0.00021358,7]
[392982968,1762195842429,-151.0,0.00021358,7]
[392982970,1762195842439,-151.0,0.00021358,7]
[392982972,1762195842448,-264.423266,0.00021358,7]
[392982974,1762195842457,-151.0,0.00021358,7]
[392982976,1762195842466,-151.0,0.00021358,7]
[392982978,1762195842475,-151.0,0.00021358,7]
[392982980,1762195842484,-166.5409,0.00021358,7]
[392982982,1762195842494,-320.99448,0.00021358,7]
[392982984,1762195842502,-151.0,0.00021358,7]
[392982986,1762195842511,-320.99448,0.00021358,7]
[392982988,1762195842521,-151.0,0.00021358,7]
[392982990,1762195842530,-320.99448,0.00021358,7]
[392982992,1762195842539,-151.0,0.00021358,7]
[392982994,1762195842548,-320.99448,0.00021358,7]
[392982996,1762195842557,-320.99448,0.00021358,7]
[392982998,1762195842567,-320.99448,0.00021358,7]
[392983000,1762195842576,-320.99448,0.00021358,7]
[392983002,1762195842585,-320.99448,0.00021358,7]
[392983003,1762195842594,-320.99448,0.00021358,7]
[392983005,1762195842603,-320.99448,0.00021358,7]
[392983007,1762195842613,-320.99448,0.00021358,7]
[392983009,1762195842622,-320.99449,0.00021358,7]
[392983011,1762195842631,-155.81992,0.00021358,7]
[392983013,1762195842639,-155.81992,0.00021358,7]
[392983015,1762195842648,-155.81992,0.00021358,7]
[392983017,1762195842659,-272.138683,0.00021358,7]
[392983027,1762195842739,-151.0,0.00021358,7]
[392983029,1762195842748,-272.138683,0.00021358,7]
[392983031,1762195842758,-272.138683,0.00021358,7]
[392983033,1762195842768,-173.645472,0.00021358,7]
[392983035,1762195842778,-155.81992,0.00021358,7]
[392983037,1762195842787,-155.81992,0.00021358,7]
[392983039,1762195842796,-155.81992,0.00021358,7]
[392983041,1762195842806,-272.138683,0.00021358,7]
[392983043,1762195842815,-272.138683,0.00021358,7]
[392983045,1762195842824,-272.138683,0.00021358,7]
[392983047,1762195842833,-151.0,0.00021358,7]
[392983049,1762195842843,-155.81992,0.00021358,7]
[392983051,1762195842853,-151.0,0.00021358,7]
[392983055,1762195842862,-155.81992,0.00021358,7]
[392983060,1762195842872,-151.0,0.00021358,7]
[392983061,1762195842881,-155.81992,0.00021358,7]
[392983065,1762195842893,-272.138683,0.00021358,7]
[392983067,1762195842903,-272.138683,0.00021358,7]
[392983069,1762195842912,-272.138683,0.00021358,7]
[392983071,1762195842921,-151.0,0.00021358,7]
[392983074,1762195842931,-155.81992,0.00021358,7]
[392983076,1762195842940,-155.81992,0.00021358,7]
[392983078,1762195842949,-151.0,0.00021358,7]
[392983080,1762195842958,-155.819919,0.00021358,7]
[392983082,1762195842967,-272.138683,0.00021358,7]
[392983084,1762195842976,-151.0,0.00021358,7]
[392983086,1762195842987,-272.138683,0.00021358,7]
[392983088,1762195842997,-272.138687,0.00021358,7]
[392983091,1762195843007,-151.0,0.00021358,7]
[392983094,1762195843015,-151.0,0.00021358,7]
[392983097,1762195843025,-174.291241,0.00021358,7]
[392983100,1762195843036,-151.0,0.00021358,7]
[392983103,1762195843046,-151.0,0.00021358,7]
[392983106,1762195843055,-153.563303,0.00021358,7]
[392983109,1762195843067,-151.0,0.00021358,7]
[392983111,1762195843076,-200.317176,0.00021358,7]
[392983113,1762195843085,-167.023478,0.00021358,7]
[392983115,1762195843095,-151.0,0.00021358,7]
[392983117,1762195843104,-248.416354,0.00021358,7]
[392983119,1762195843113,-175.918206,0.00021358,7]
[392983122,1762195843123,-151.0,0.00021358,7]
[392983124,1762195843132,-151.0,0.00021358,7]
[392983127,1762195843141,-151.0,0.00021358,7]
[392983130,1762195843150,-151.531062,0.00021358,2]
[392983132,1762195843159,-151.531062,0.00021358,2]
[392983134,1762195843170,-151.531062,0.00021358,2]
[392983135,1762195843179,-151.53107,0.00021358,2]
[392983138,1762195843189,-151.0,0.00021358,7]
[392983139,1762195843199,-266.370069,0.00021358,7]
[392983142,1762195843208,-151.0,0.00021358,7]
[392983144,1762195843218,-151.36299432,0.00021358,2]
[392983145,1762195843227,-151.0,0.00021358,2]
[392983147,1762195843236,-500.0,0.00021358,2]
[392983149,1762195843245,-151.0,0.00021358,2]
[392983151,1762195843255,-151.0,0.00021358,2]
[392983153,1762195843264,-350.92,0.00021358,2]
[392983155,1762195843273,-154.329219,0.0002136,7]
[392983157,1762195843282,-248.290292,0.0002136,7]
[392983159,1762195843292,-151.0,0.0002136,7]
[392983161,1762195843302,-156.135253,0.0002136,7]
[392983163,1762195843311,-151.0,0.0002136,7]
[392983165,1762195843320,-151.0,0.0002136,7]
[392983167,1762195843330,-346.661176,0.0002136,7]
[392983169,1762195843339,-346.661176,0.0002136,7]
[392983171,1762195843349,-346.661176,0.0002136,7]
[392983173,1762195843358,-346.661176,0.0002136,7]
[392983175,1762195843367,-151.0,0.0002136,7]
[392983177,1762195843377,-151.0,0.0002136,7]
[392983179,1762195843386,-151.0,0.0002136,7]
[392983181,1762195843396,-414.653916,0.0002136,7]
[392983184,1762195843406,-414.653916,0.0002136,7]
[392983186,1762195843415,-414.653916,0.0002136,7]
[392983187,1762195843424,-414.653916,0.0002136,7]
[392983189,1762195843433,-155.570449,0.0002136,7]
[392983191,1762195843443,-162.077535,0.0002136,7]
[392983193,1762195843452,-154.115805,0.0002136,7]
[392983195,1762195843461,-162.077535,0.0002136,7]
[392983197,1762195843470,-151.0,0.0002136,7]
[392983199,1762195843479,-162.077535,0.0002136,7]
[392983201,1762195843488,-274.500373,0.0002136,7]
[392983202,1762195843497,-162.077535,0.0002136,7]
[392983203,1762195843506,-500.0,0.0002136,7]
[392983204,1762195843516,-151.0,0.0002136,2]
[392983205,1762195843526,-246.9030978,0.0002136,7]
[392983206,1762195843534,-151.0,0.0002136,7]
[392983207,1762195843543,-151.0,0.0002136,7]
[392983208,1762195843552,-501.29828015,0.00021373,2]
[392983209,1762195843561,-500.0,0.00021373,2]
[392983210,1762195843570,-500.0,0.00021373,2]
[392983211,1762195843579,-501.9256619,0.00021373,2]
[392983212,1762195843588,-502.81085202,0.00021373,2]
[392983213,1762195843598,-500.0,0.00021373,2]
[392983214,1762195843607,-504.1696067,0.00021373,2]
[392983215,1762195843616,-500.0,0.00021373,2]
[392983216,1762195843624,-500.0,0.00021373,2]
[392983217,1762195843634,-151.0,0.00021375,7]
[392983218,1762195843643,-370.078677,0.00021375,7]
[392983219,1762195843652,-370.078677,0.00021375,7]
[392983220,1762195843661,-370.078677,0.00021375,7]
[392983221,1762195843670,-370.078677,0.00021375,7]
[392983223,1762195843679,-151.0,0.00021375,7]
[392983225,1762195843688,-151.0,0.00021375,7]
[392983227,1762195843697,-1354.56627013,0.00021378,2]
[392983235,1762195843765,-151.0,0.00021384,7]
[392983237,1762195843775,-151.0,0.00021384,7]
[392983239,1762195843785,-151.0,0.00021384,7]
[392983241,1762195843794,-346.661176,0.00021384,7]
[392983243,1762195843803,-346.661176,0.00021384,7]
[392983245,1762195843812,-346.661176,0.00021384,7]
[392983247,1762195843821,-346.661176,0.00021384,7]
[392983249,1762195843831,-151.0,0.00021384,7]
[392983251,1762195843840,-237.88724,0.00021384,7]
[392983253,1762195843850,-152.27062,0.00021384,7]
[392983255,1762195843859,-151.0,0.00021384,7]
[392983257,1762195843868,-151.0,0.00021384,7]
[392983259,1762195843878,-414.653916,0.00021384,7]
[392983261,1762195843889,-414.653916,0.00021384,7]
[392983263,1762195843899,-414.653916,0.00021384,7]
[392983265,1762195843909,-414.653916,0.00021384,7]
[392983267,1762195843918,-162.077535,0.00021384,7]
[392983269,1762195843927,-162.077535,0.00021384,7]
[392983271,1762195843936,-151.0,0.00021384,7]
[392983273,1762195843946,-162.077535,0.00021384,7]
[392983275,1762195843955,-162.077535,0.00021384,7]
[392983277,1762195843964,-681.0,0.00021384,7]
[392983279,1762195843974,-500.0,0.00021384,7]
[392983282,1762195843984,-220.37473147,0.00021384,7]
[392983284,1762195843996,-500.0,0.00021384,7]
[392983285,1762195844005,-151.0,0.00021384,7]
[392983288,1762195844015,-151.0,0.00021384,7]
[392983290,1762195844025,-151.0,0.000214,3]
[392983292,1762195844035,-151.0,0.000214,3]
[392983294,1762195844045,-151.0,0.000214,4]
[392983296,1762195844054,-151.0,0.00021404,7]
[392983298,1762195844064,-151.0,0.00021404,7]
[392983299,1762195844077,-151.0,0.00021404,7]
[392983301,1762195844086,-151.0,0.00021404,7]
[392983303,1762195844096,-151.0,0.00021404,7]
[392983305,1762195844105,-151.0,0.00021404,7]
[392983307,1762195844114,-151.0,0.00021404,7]
[392983309,1762195844124,-151.0,0.00021404,7]
[392983311,1762195844134,-151.0,0.00021404,7]
[392983313,1762195844143,-151.0,0.00021404,7]
[392983315,1762195844152,-155.74967,0.00021404,7]
[392983317,1762195844161,-151.584754,0.00021404,7]
[392983319,1762195844170,-370.078677,0.00021404,7]
[392983322,1762195844183,-370.078677,0.00021404,7]
[392983324,1762195844192,-370.078677,0.00021404,7]
[392983326,1762195844201,-370.078677,0.00021404,7]
[392983328,1762195844210,-151.0,0.00021404,7]
[392983330,1762195844219,-151.0,0.00021404,7]
[392983332,1762195844228,-226.57732,0.00021404,7]
[392983334,1762195844237,-414.653916,0.00021404,7]
[392983336,1762195844246,-414.653916,0.00021404,7]
[392983338,1762195844255,-414.653916,0.00021404,7]
[392983340,1762195844264,-414.653924,0.00021404,7]
[392983342,1762195844273,-162.077535,0.00021404,7]
[392983344,1762195844283,-162.077535,0.00021404,7]
[392983346,1762195844292,-151.0,0.00021404,7]
[392983348,1762195844300,-162.077535,0.00021404,7]
[392983350,1762195844309,-162.077542,0.00021404,7]
[392983352,1762195844319,-151.0,0.00021413,2]
[392983354,1762195844328,-500.0,0.00021413,2]
[392983356,1762195844336,-151.0,0.00021413,2]
[392983358,1762195844346,-151.0,0.00021413,2]
[392983360,1762195844355,-500.0,0.00021415,7]
[392983362,1762195844364,-151.0,0.00021415,7]
[392983364,1762195844373,-151.0,0.00021415,7]
[392983366,1762195844383,-346.79181831,0.0002143,2]
[392983368,1762195844391,-681.0,0.00021439,7]
[392983370,1762195844404,-500.0,0.00021439,7]
[392983372,1762195844413,-500.0,0.00021439,7]
[392983374,1762195844422,-193.67798862,0.00021439,7]
[392983376,1762195844431,-151.0,0.00021439,7]
[392983378,1762195844440,-8225.830377,0.00021446,2]
[392983380,1762195844450,-999.1485215,0.00021446,2]
[392983382,1762195844458,-151.0,0.00021446,7]
[392983384,1762195844467,-151.0,0.00021446,7]
[392983386,1762195844476,-151.0,0.00021446,7]
[392983388,1762195844485,-151.0,0.00021446,7]
[392983390,1762195844494,-151.0,0.00021446,7]
[392983392,1762195844503,-151.0,0.00021446,7]
[392983394,1762195844512,-151.0,0.00021446,7]
[392983396,1762195844524,-151.0,0.00021446,7]
[392983398,1762195844534,-151.0,0.00021446,7]
[392983400,1762195844543,-151.0,0.00021446,7]
[392983402,1762195844552,-151.0,0.00021446,7]
[392983404,1762195844562,-346.661176,0.00021446,7]
[392983406,1762195844572,-346.661176,0.00021446,7]
[392983408,1762195844581,-346.661176,0.00021446,7]
[392983410,1762195844590,-346.661176,0.00021446,7]
[392983412,1762195844599,-346.661176,0.00021446,7]
[392983414,1762195844607,-346.661176,0.00021446,7]
[392983416,1762195844617,-346.661176,0.00021446,7]
[392983418,1762195844626,-346.661176,0.00021446,7]
[392983420,1762195844635,-151.0,0.00021446,7]
[392983422,1762195844644,-151.0,0.00021446,7]
[392983430,1762195844707,-151.0,0.00021446,7]
[392983432,1762195844717,-189.133564,0.00021446,7]
[392983434,1762195844726,-151.0,0.00021446,7]
[392983436,1762195844735,-151.0,0.00021446,7]
[392983438,1762195844744,-151.0,0.00021446,7]
[392983440,1762195844753,-151.0,0.00021446,7]
[392983442,1762195844763,-151.0,0.00021446,7]
[392983444,1762195844772,-151.0,0.00021446,7]
[392983446,1762195844781,-151.0,0.00021446,7]
[392983448,1762195844790,-151.0,0.00021446,7]
[392983451,1762195844800,-151.0,0.00021446,7]
[392983452,1762195844809,-151.0,0.00021446,7]
[392983454,1762195844818,-151.0,0.00021446,7]
[392983456,1762195844827,-151.0,0.00021446,7]
[392983458,1762195844836,-151.0,0.00021446,7]
[392983460,1762195844846,-151.0,0.00021446,7]
[392983462,1762195844855,-151.0,0.00021446,7]
[392983464,1762195844863,-151.0,0.00021446,7]
[392983466,1762195844873,-151.0,0.00021446,7]
[392983468,1762195844882,-370.078677,0.00021446,7]
[392983470,1762195844892,-370.078677,0.00021446,7]
[392983472,1762195844900,-370.078677,0.00021446,7]
[392983474,1762195844909,-370.07867,0.00021446,7]
[392983476,1762195844918,-151.0,0.00021446,7]
[392983478,1762195844927,-151.0,0.00021446,7]
[392983480,1762195844936,-2874.5161196,0.00021446,2]
[392983482,1762195844946,-1592.1522901,0.00021446,2]
[392983484,1762195844955,-151.0,0.00021447,7]
[392983486,1762195844965,-227.166397,0.00021447,7]
[392983488,1762195844975,-227.166397,0.00021447,7]
[392983490,1762195844985,-227.166397,0.00021447,7]
[392983493,1762195844997,-227.166397,0.00021447,7]
[392983495,1762195845006,-151.0,0.00021447,7]
[392983497,1762195845015,-151.0,0.00021447,7]
[392983499,1762195845027,-151.0,0.00021447,7]
[392983501,1762195845036,-151.0,0.00021447,7]
[392983503,1762195845044,-151.0,0.00021447,7]
[392983505,1762195845053,-174.344065,0.00021447,7]
[392983506,1762195845065,-151.0,0.00021447,7]
[392983509,1762195845075,-158.347686,0.00021447,7]
[392983511,1762195845084,-151.0,0.00021447,7]
[392983513,1762195845093,-151.0,0.00021447,7]
[392983515,1762195845102,-203.11684098,0.00021447,2]
[392983517,1762195845111,-151.0,0.00021447,7]
[392983519,1762195845120,-164.592712,0.00021447,7]
[392983521,1762195845130,-177.346097,0.00021447,7]
[392983523,1762195845139,-151.0,0.00021447,7]
[392983525,1762195845148,-151.0,0.00021447,7]
[392983527,1762195845157,-181.639728,0.00021447,7]
[392983529,1762195845166,-153.09912,0.00021447,7]
[392983531,1762195845175,-163.550409,0.00021447,7]
[392983533,1762195845185,-346.661176,0.00021447,7]
[392983535,1762195845194,-346.661176,0.00021447,7]
[392983537,1762195845204,-346.661176,0.00021447,7]
[392983539,1762195845213,-346.661174,0.00021447,7]
[392983541,1762195845222,-151.0,0.00021447,7]
[392983543,1762195845231,-151.0,0.00021447,7]
[392983545,1762195845240,-151.0,0.00021447,7]
[392983547,1762195845249,-170.155852,0.00021447,7]
[392983549,1762195845259,-151.0,0.00021447,7]
[392983551,1762195845268,-301.35577,0.00021447,7]
[392983553,1762195845278,-151.0,0.00021447,7]
[392983555,1762195845287,-151.0,0.00021447,7]
[392983557,1762195845297,-151.0,0.00021447,7]
[392983559,1762195845306,-151.0,0.00021448,7]
[392983561,1762195845315,-151.0,0.00021448,7]
[392983563,1762195845323,-151.0,0.00021453,7]
[392983565,1762195845333,-227.166397,0.00021453,7]
[392983566,1762195845344,-227.166397,0.00021453,7]
[392983569,1762195845353,-227.166397,0.00021453,7]
[392983571,1762195845363,-227.166397,0.00021453,7]
[392983573,1762195845372,-151.0,0.00021453,7]
[392983575,1762195845381,-151.0,0.00021453,7]
[392983577,1762195845390,-151.0,0.00021453,7]
[392983579,1762195845399,-151.0,0.00021453,7]
[392983581,1762195845409,-190.203882,0.00021453,7]
[392983583,1762195845418,-151.0,0.00021453,7]
[392983585,1762195845427,-153.620232,0.00021453,7]
[392983587,1762195845437,-500.0,0.00021453,2]
[392983589,1762195845446,-500.0,0.00021453,2]
[392983591,1762195845455,-490.34407463,0.00021453,2]
[392983593,1762195845464,-466.84928547,0.00021453,2]
[392983595,1762195845473,-151.0,0.00021458,7]
[392983597,1762195845482,-151.0,0.00021458,7]
[392983599,1762195845491,-227.166397,0.00021458,7]
[392983601,1762195845501,-227.166397,0.00021458,7]
[392983603,1762195845510,-227.166397,0.00021458,7]
[392983609,1762195845519,-227.166397,0.00021458,7]
[392983611,1762195845579,-227.166397,0.00021458,7]
[392983613,1762195845588,-227.166397,0.00021458,7]
[392983615,1762195845598,-227.166397,0.00021458,7]
[392983617,1762195845607,-227.166397,0.00021458,7]
[392983619,1762195845616,-151.0,0.00021458,7]
[392983621,1762195845625,-151.0,0.00021458,7]
[392983623,1762195845635,-183.915735,0.00021458,7]
[392983625,1762195845645,-151.0,0.00021458,7]
[392983627,1762195845656,-151.0,0.00021458,7]
[392983629,1762195845665,-151.0,0.00021458,7]
[392983631,1762195845674,-151.0,0.00021458,7]
[392983633,1762195845683,-169.91003,0.00021458,7]
[392983635,1762195845692,-151.0,0.00021458,7]
[392983638,1762195845702,-227.166397,0.00021459,7]
[392983639,1762195845711,-227.166397,0.00021459,7]
[392983641,1762195845720,-227.166397,0.00021459,7]
[392983643,1762195845730,-227.166392,0.00021459,7]
[392983645,1762195845739,-151.0,0.00021459,7]
[392983647,1762195845749,-1000.0,0.00021459,2]
[392983649,1762195845758,-1000.0,0.00021459,2]
[392983651,1762195845767,-298.73438807,0.00021459,2]
[392983653,1762195845777,-198.0,0.00021468,2]
[392983655,1762195845787,-500.0,0.00021468,2]
[392983657,1762195845796,-287.29532488,0.00021468,2]
[392983659,1762195845805,-313.6050346,0.0002147,7]
[392983661,1762195845814,-198.0,0.0002147,7]
[392983663,1762195845824,-198.0,0.0002147,7]
[392983665,1762195845833,-500.0,0.00021473,2]
[392983667,1762195845842,-500.0,0.00021473,2]
[392983669,1762195845852,-502.06786248,0.00021473,2]
[392983672,1762195845861,-500.0,0.00021473,2]
[392983674,1762195845871,-159.02465379,0.00021473,2]
[392983676,1762195845879,-500.0,0.00021473,2]
[392983678,1762195845888,-288.08013499,0.00021473,2]
[392983679,1762195845898,-500.0,0.00021473,2]
[392983681,1762195845907,-504.90605313,0.00021473,2]
[392983683,1762195845916,-501.2953082,0.00021473,2]
[392983685,1762195845926,-500.0,0.00021473,2]
[392983688,1762195845935,-500.94286624,0.00021473,2]
[392983690,1762195845944,-501.62955012,0.00021473,2]
[392983692,1762195845953,-500.0,0.00021473,2]
[392983695,1762195845973,-502.73619851,0.00021473,2]
[392983698,1762195845995,-500.0,0.00021473,2]
[392983702,1762195846013,-500.0,0.00021473,2]
[392983706,1762195846034,-500.0,0.00021473,2]
[392983711,1762195846053,-502.16608146,0.00021473,2]
[392983715,1762195846072,-504.52546306,0.00021473,2]
[392983719,1762195846091,-681.0,0.00021494,7]
[392983721,1762195846105,-500.0,0.00021494,7]
[392983724,1762195846123,-500.0,0.00021494,7]
[392983727,1762195846142,-151.0,0.00021494,7]
[392983730,1762195846163,-151.0,0.000215,3]
[392983733,1762195846177,-151.0,0.000215,4]
[392983736,1762195846198,-151.0,0.000215,3]
[392983739,1762195846212,-151.0,0.000215,4]
[392983741,1762195846228,-151.0,0.000215,3]
[392983744,1762195846243,-151.0,0.000215,4]
[392983747,1762195846258,-151.0,0.000215,4]
[392983749,1762195846274,-151.0,0.000215,4]
[392983752,1762195846288,-500.0,0.00021522,2]
[392983754,1762195846302,-500.0,0.00021532,7]
[392983757,1762195846318,-681.0,0.00021548,7]
[392983760,1762195846332,-207.39504461,0.00021548,7]
[392983762,1762195846347,-500.0,0.00021548,7]
[392983765,1762195846361,-209.65384804,0.00021548,7]
[392983767,1762195846375,-500.0,0.00021561,2]
[392983770,1762195846394,-500.0,0.00021561,2]
[392983773,1762195846409,-627.67637,0.00021561,2]
[392983776,1762195846423,-500.0,0.00021573,2]
[392983778,1762195846437,-150.39334373,0.00021573,2]
[392983781,1762195846452,-501.28933364,0.00021573,2]
[392983783,1762195846465,-501.94934125,0.00021573,2]
[392983786,1762195846480,-500.0,0.00021573,2]
[392983788,1762195846494,-500.0,0.00021573,2]
[392983791,1762195846508,-501.81472733,0.00021573,2]
[392983793,1762195846522,-501.90675893,0.00021573,2]
[392983796,1762195846537,-500.48690157,0.00021573,2]
[392983798,1762195846547,-343.71181118,0.00021573,2]
[392983800,1762195846555,-508.8212336,0.00021573,2]
[392983802,1762195846565,-278.77217867,0.00021573,2]
[392983817,1762195846670,-374.42550605,0.00021577,2]
[392983820,1762195846690,-151.0,0.000216,3]
[392983822,1762195846700,-681.0,0.00021603,7]
[392983824,1762195846709,-500.0,0.00021603,7]
[392983826,1762195846719,-150.0,0.00021654,2]
[392983828,1762195846728,-300.0,0.00021654,2]
[392983830,1762195846739,-450.0,0.00021654,2]
[392983832,1762195846749,-600.0,0.00021654,2]
[392983834,1762195846759,-750.0,0.00021654,2]
[392983836,1762195846768,-331.9568629,0.00021654,2]
[392983838,1762195846778,-681.0,0.00021658,7]
[392983840,1762195846787,-500.0,0.00021658,7]
[392983842,1762195846797,-55595.2839449,0.00021662,2]
[392983844,1762195846806,-155.0,0.00021667,2]
[392983846,1762195846815,-436.61972912,0.00021673,2]
[392983848,1762195846825,-268.96438236,0.00021673,2]
[392983850,1762195846834,-158.5405988,0.00021673,2]
[392983852,1762195846844,-681.0,0.00021713,7]
[392983854,1762195846854,-500.0,0.00021713,7]
[392983856,1762195846864,-681.0,0.00021768,7]
[392983858,1762195846873,-500.0,0.00021768,7]
[392983861,1762195846883,-217.15233878,0.00021793,2]
[392983863,1762195846892,-500.0,0.00021806,7]
[392983864,1762195846900,-1000.0,0.00021821,2]
[392983867,1762195846910,-1000.0,0.00021821,2]
[392983869,1762195846919,-1000.0,0.00021821,2]
[392983870,1762195846928,-681.0,0.00021822,7]
[392983872,1762195846937,-500.0,0.00021822,7]
[392983873,1762195846946,-150.0,0.00021829,2]
[392983874,1762195846955,-296.90419695,0.00021869,2]
[392983875,1762195846964,-1186.42917102,0.00021869,2]
[392983876,1762195846974,-1008.35904228,0.00021869,2]
[392983877,1762195846983,-195.27319788,0.00021869,2]
[392983878,1762195846996,-671.05969385,0.00021869,2]
[392983879,1762195847006,-780.31169873,0.00021869,2]
[392983880,1762195847015,-2684.2387754,0.00021869,2]
[392983881,1762195847025,-6039.53724464,0.00021869,2]
[392983882,1762195847034,-697.14224704,0.00021869,2]
[392983883,1762195847044,-681.0,0.00021877,7]
[392983884,1762195847053,-500.0,0.00021877,7]
[392983885,1762195847063,-4033.43616912,0.00021888,2]
[392983886,1762195847073,-151.0,0.00021918,7]
[392983887,1762195847083,-151.0,0.00021918,7]
[392983888,1762195847092,-151.0,0.00021918,7]
[392983889,1762195847101,-151.0,0.00021918,7]
[392983891,1762195847110,-151.0,0.00021918,7]
[392983893,1762195847119,-501.68682949,0.00021921,2]
[392983895,1762195847128,-505.19113955,0.00021921,2]
[392983897,1762195847137,-902.44651914,0.00021921,2]
[392983899,1762195847146,-1000.0,0.00021921,2]
[392983901,1762195847156,-1000.0,0.00021921,2]
[392983903,1762195847165,-2370.23690174,0.00021932,4]
[392983905,1762195847174,-681.0,0.00021932,7]
[392983907,1762195847183,-500.0,0.00021932,7]
[392983909,1762195847192,-160.0,0.00021935,2]
[392983911,1762195847202,-500.0,0.00021973,2]
[392983913,1762195847211,-500.93435362,0.00021973,2]
[392983915,1762195847220,-501.96935783,0.00021973,2]
[392983917,1762195847229,-510.30932689,0.00021973,2]
[392983919,1762195847238,-681.0,0.00021987,7]
[392983921,1762195847248,-500.0,0.00021987,7]
[392983923,1762195847257,-100000.0,0.0002199,2]
[392983925,1762195847266,-9560.76258217,0.00022,2]
[392983927,1762195847276,-8312.21,0.00022,7]
[392983929,1762195847285,-911.87,0.00022,7]
[392983931,1762195847295,-1000.0,0.00022021,2]
[392983933,1762195847303,-1000.0,0.00022021,2]
[392983935,1762195847312,-566.10130437,0.00022021,2]
[392983937,1762195847322,-1000.0,0.00022021,2]
[392983939,1762195847331,-1000.0,0.00022021,2]
[392983941,1762195847342,-517.81977126,0.00022021,2]
[392983943,1762195847351,-500.0,0.00022021,2]
[392983945,1762195847361,-1000.0,0.00022021,2]
[392983947,1762195847370,-1000.0,0.00022021,2]
[392983949,1762195847379,-1000.0,0.00022021,2]
[392983951,1762195847388,-681.0,0.00022042,7]
[392983953,1762195847397,-500.0,0.00022042,7]
[392983955,1762195847406,-500.0,0.0002208,7]
[392983957,1762195847415,-681.0,0.00022096,7]
[392983959,1762195847425,-500.0,0.00022096,7]
[392983961,1762195847434,-1000.0,0.00022121,2]
[392983963,1762195847444,-500.23470349,0.00022121,2]
[392983965,1762195847453,-681.0,0.00022151,7]